Cogmind - Beta 14 @@@ ROGUE MODE // 2025.03.11 @ 21:48:29 Player: Solshine Result: Self-destructed Performance ------------- Evolutions (1) 500 Regions Visited (2) 400 Robots Destroyed (7) 35 Value Destroyed (112) 112 Prototype IDs (0) 0 Alien Tech Used (0) 0 Bonus (0) 0 TOTAL SCORE: 1047 Bonus ------- None Cogmind --------- Core Integrity 213/400 Matter 300/300 Energy 100/100 System Corruption 9% Temperature Cool (15) Movement Core (100) Ox1 Location -9/Materials Parts ------- > --- POWER (1) -------- (None) > --- PROPULSION (4) --- (None) > --- UTILITY (2) ------ Small Storage Unit > --- WEAPON (2) ------- (None) > --- INVENTORY (8) ---- Light Treads Light Treads Improved Terrain Scanner Small Laser Light EM Pulse Cannon Light EM Pulse Cannon Peak State ------------ > --- POWER ------------ Ion Engine > --- PROPULSION ------- Aluminum Leg Aluminum Leg Aluminum Leg > --- UTILITY ---------- Small Storage Unit Seismic Detector > --- WEAPON ----------- Light EM Pulse Cannon Light EM Pulse Cannon > --- INVENTORY -------- Light Ion Engine Light Treads Light Treads Improved Terrain Scanner Small Laser Light EM Pulse Cannon Light EM Pulse Cannon [Rating: 11] Favorites ----------- Power Ion Engine Engine Ion Engine Propulsion Aluminum Leg Leg Aluminum Leg Utility Small Storage Unit Device Seismic Detector Storage Small Storage Unit Weapon Light EM Pulse Cannon Energy Gun Small Laser Energy Cannon Light EM Pulse Cannon Build | -11 -10 -9 ------- Run | Yrd Mat Mat Slots Evolved 2 | . . 2 Power . | . . . Propulsion 2 | . . 2 Utility . | . . . Weapon . | . . . Parts Attached 13 | 7 1 5 Power 3 | 1 1 1 Engine 3 | 1 1 1 Core . | . . . Reactor . | . . . Propulsion 3 | 2 . 1 Treads . | . . . Leg 3 | 2 . 1 Wheel . | . . . Hover . | . . . Flight . | . . . Utility 2 | 2 . . Device 1 | 1 . . Storage 1 | 1 . . Processor . | . . . Hackware . | . . . Protection . | . . . Artifact . | . . . Weapon 5 | 2 . 3 Energy Gun 2 | 2 . . Energy Cannon 3 | . . 3 Ballistic Gun . | . . . Ballistic Cannon . | . . . Launcher . | . . . Special Weapon . | . . . Impact Weapon . | . . . Slashing Weapon . | . . . Piercing Weapon . | . . . Special Melee Weapon . | . . . Unidentified Prototypes . | . . . Corrupted Parts 1 | . . 1 System Corruption 9 | . . 9 Parts Lost 9 | . 1 8 Power 2 | . . 2 Propulsion 3 | . . 3 Utility 1 | . . 1 Weapon 3 | . 1 2 Highest Loss Streak 6 | . 1 6 To Critical Strikes . | . . . Average Slot Usage (%) 89 | . 99 79 Engine 11 | . 14 8 Leg 28 | . 28 28 Device 12 | . 14 10 Storage 12 | . 14 11 Energy Gun 13 | . 27 . Energy Cannon 10 | . . 20 Peak Build Rating 11 | 7 7 11 Average Rating 7 | 5 6 9 On Entrance 4 | . 7 6 Naked Turns . | . . . Heaviest Build 19 | 12 14 19 Greatest Support 30 | 20 20 30 Greatest Overweight (x) 5 | . . 5 Average Overweight (x) . | . . . Largest Inventory Capacity 8 | 8 8 8 Average Capacity 7 | 7 8 8 Most Carried 8 | 6 7 8 Average Carried 5 | 4 5 6 Final Capacity 8 | 8 8 8 Final Carried 7 | 5 7 6 Class Distribution -------------------- 100% | Mutant Dominant Class ---------------- Mutant | -10/Materials Mutant | -9/Materials Resources | -11 -10 -9 ----------- Run | Yrd Mat Mat Matter Collected 294 | 251 29 14 Remotely . | . . . Salvage Created 226 | 96 50 80 Parts 18 | 11 2 5 Haulers Intercepted . | . . . Recyclers Shooed . | . . . Parts Field Recycled . | . . . Retrieved Matter . | . . . Parts Self-Destructed . | . . . Prevented . | . . . Kills | -11 -10 -9 ------- Run | Yrd Mat Mat Combat Hostiles Destroyed 2 | . 1 1 Guns 1 | . 1 . Cannons 1 | . . 1 Classes Destroyed 3 | 1 1 1 Tunneler 4 | 4 . . Watcher 1 | . . 1 Grunt 2 | . 1 1 Best Kill Streak 2 | 2 1 1 Combat Bots Only 1 | . 1 1 Max Kills in Single Turn 1 | 1 1 1 Gunslinging . | . . . Exploded . | . . . Melee . | . . . Uniques/NPCs Destroyed . | . . . Combat | -11 -10 -9 -------- Run | Yrd Mat Mat Hostile Shots Fired 117 | . 41 76 Missed 40 | . 12 28 Damage Taken 970 | . 318 652 Core 209 | . 22 187 Absorbed by Shields . | . . . Core Remaining (%) 95 | 100 91 . Volleys Fired 22 | 11 9 2 Largest 2 | 2 2 2 Hottest 112 | 80 80 112 Shots Fired 43 | 21 18 4 Gun 39 | 21 18 . Cannon 4 | . . 4 Launcher . | . . . Special . | . . . Kinetic . | . . . Thermal 20 | 11 9 . Explosive . | . . . Electromagnetic 23 | 10 9 4 Robot Hit Streak 5 | 5 5 5 Robot Miss Streak 2 | 2 1 . Penetration Max . | . . . Secondary Targets 1 | . 1 . Max Gunslinging Chain 1 | . 1 . Shots Hit Robots 32 | 15 14 3 Core Hits 8 | 4 2 2 Critical Kills . | . . . Critical Parts Destroyed . | . . . Critical Strikes 1 | 1 . . Corrupt 1 | 1 . . Melee Attacks . | . . . Impact . | . . . Slashing . | . . . Piercing . | . . . Sneak Attacks . | . . . Combat Hostiles . | . . . Follow-up Attacks . | . . . Damage Inflicted 445 | 178 168 99 Guns 346 | 178 168 . Cannons 79 | . . 79 Explosions . | . . . Melee . | . . . Ramming 20 | . . 20 Kinetic . | . . . Thermal 163 | 87 76 . Explosive . | . . . Electromagnetic 262 | 91 92 79 Impact . | . . . Slashing . | . . . Piercing . | . . . Highest Corruption 9 | . . 9 Average Corruption 9 | . . 9 Corruption Purged . | . . . Corruption Blocked . | . . . Effects 11 | . . 11 Message Errors 1 | . . 1 Matter Fused 3 | . . 3 Heat Flow Errors 2 | . . 2 Energy Discharges 1 | . . 1 Parts Rejected 1 | . . 1 Data Loss (minor) 1 | . . 1 Data Loss (major) 1 | . . 1 Misfires 1 | . . 1 Overload Shots . | . . . Overflow Damage . | . . . Projectiles . | . . . Explosions . | . . . Melee . | . . . Knockbacks . | . . . Impact . | . . . Kinetic . | . . . Secondary . | . . . Self-Inflicted Damage 1 | . . 1 Shots . | . . . Rammed 3 | . . 3 Targets Rammed 12 | . . 12 Kicked 9 | . . 9 Crushed . | . . . Highest Temperature 198 | 54 198 105 Average Temperature 56 | 22 96 40 Received Heat Transfer 528 | . 174 354 Siege Activations . | . . . Robots Corrupted . | . . . Combat Hostiles . | . . . Parts Fried . | . . . Impact Corruptions . | . . . Robots Melted . | . . . Combat Hostiles . | . . . Parts Melted . | . . . Heat Transferred 375 | 200 175 . Parts Sabotaged . | . . . Parts Stolen . | . . . Parts Stripped . | . . . Power Chain Reactions . | . . . Alert | -11 -10 -9 ------- Run | Yrd Mat Mat Peak Influence 94 | 20 33 94 Initial 13 | . 13 9 Average 21 | 7 19 31 Maximum Alert Level . | . . . Low Security (%) 100 | 100 100 100 Level 1 . | . . . Level 2 . | . . . Level 3 . | . . . Level 4 . | . . . Level 5 . | . . . High Security . | . . . Max Security . | . . . Squads Dispatched 3 | . 1 2 Investigation 1 | . 1 . Extermination . | . . . Reinforcement 2 | . . 2 Assault . | . . . Garrison . | . . . Intercept . | . . . Searches Triggered . | . . . Construction Impeded . | . . . Haulers Reinforced . | . . . Active Scanning Responses . | . . . Cargo Convoy Interrupts . | . . . Stealth | -11 -10 -9 --------- Run | Yrd Mat Mat Distress Signals 1 | . . 1 Communications Jammed . | . . . Distress Signals . | . . . Times Spotted 13 | . 3 10 Peak Tracking Total 7 | . 3 7 Tactical Retreats 1 | . . 1 Traps | -11 -10 -9 ------- Run | Yrd Mat Mat Traps Triggered 1 | . 1 . Indirectly . | . . . Trap Hack Attempts . | . . . Triggered . | . . . Disarmed . | . . . Reprogrammed . | . . . Reused . | . . . Traps Extracted . | . . . Installed . | . . . Triggered . | . . . Machines | -11 -10 -9 ---------- Run | Yrd Mat Mat Machines Disabled . | . . . Max in Single Turn . | . . . Machines Repaired . | . . . Machines Dismantled . | . . . Machines Sabotaged . | . . . Overloaded Fab Kills . | . . . Hacking | -11 -10 -9 --------- Run | Yrd Mat Mat Machines Accessed 3 | . 2 1 Terminals 3 | . 2 1 Fabricators . | . . . Repair Stations . | . . . Recycling Units . | . . . Scanalyzers . | . . . Garrison Access . | . . . Total Hacks 7 | . 4 3 Successful 1 | . . 1 Failed 6 | . 4 2 Catastrophic 1 | . 1 . Database Lockouts . | . . . Manual . | . . . Terminals 7 | . 4 3 Fabricators . | . . . Repair Stations . | . . . Recycling Units . | . . . Scanalyzers . | . . . Garrison Access . | . . . Terminal Hacks 1 | . . 1 Record 1 | . . 1 Fabricator Hacks . | . . . Repair Station Hacks . | . . . Recycling Unit Hacks . | . . . Scanalyzer . | . . . Garrison Access Hacks . | . . . Unauthorized Hacks . | . . . Terminals . | . . . Fabricators . | . . . Repair Stations . | . . . Recycling Units . | . . . Scanalyzers . | . . . Garrison Access . | . . . Data Cores Recovered . | . . . Used . | . . . Hacking Detections 3 | . 2 1 Full Trace Events . | . . . Feedback Events . | . . . Feedback Blocked . | . . . Robot Schematics Acquired . | . . . Robots Built . | . . . Authchips . | . . . Time . | . . . Total Robot Build Rating . | . . . Part Schematics Acquired . | . . . Parts Built . | . . . Authchips . | . . . Time . | . . . Total Part Build Rating . | . . . Parts Repaired . | . . . Time . | . . . Parts Recycled . | . . . Recycled Matter . | . . . Retrieved Matter . | . . . Retrieved Components . | . . . Parts Scanalyzed . | . . . Part Schematics Acquired . | . . . Parts Damaged . | . . . Bothacking | -11 -10 -9 ------------ Run | Yrd Mat Mat Used RIF Installer . | . . . Robots Hacked . | . . . Non-combat . | . . . Combat . | . . . Robot Hacks Applied . | . . . Relay Couplers Released . | . . . Fabnet Peak Effective % . | . . . Robots Rewired . | . . . Allies Hacked . | . . . Hacks Repelled . | . . . Allies | -11 -10 -9 -------- Run | Yrd Mat Mat Total Allies . | . . . Largest Group . | . . . Highest-Rated Group . | . . . Highest-Rated Ally . | . . . Total Orders . | . . . Ally Attacks . | . . . Total Damage . | . . . Kills . | . . . Allies Corrupted . | . . . Allies Melted . | . . . Intel | -11 -10 -9 ------- Run | Yrd Mat Mat Robot Analysis Total . | . . . Derelict Logs Recovered . | . . . Drone Launches . | . . . Drone Recoveries . | . . . Exploration | -11 -10 -9 ------------- Run | Yrd Mat Mat Turns Passed 748 | 146 291 311 Spaces Moved 490 | 82 203 205 Core 8 | 5 . 3 Treads . | . . . Legs 482 | 77 203 202 Wheels . | . . . Hover . | . . . Flight . | . . . Fastest Speed 50 | 50 120 120 Average Speed 120 | 115 120 121 Slowest Speed 300 | 120 120 300 Overloaded Moves . | . . . Propulsion Burnouts . | . . . Robots Hopped . | . . . Cave-ins Triggered . | . . . Exploration Rate (%) 13 | 6 20 15 Regions Visited 2 Branch Regions . Pre-discovered Areas . | . . . Known Exits Taken . | . . . Unknown Exits Taken 2 | 1 1 . Scrap Searched . | . . . Spaces Dug . | . . . Terrain Destroyed . | . . . Melee . | . . . Projectile . | . . . AOE . | . . . Terrain Rammed . | . . . Walls Destroyed . | . . . Machines Disabled . | . . . Actions | -11 -10 -9 --------- Run | Yrd Mat Mat Total 598 | 112 232 254 Wait 39 | . 16 23 Move 488 | 81 202 205 Hop . | . . . Pick Up 20 | 12 3 5 Fast Attach 1 | 1 . . Attach 11 | 6 . 5 Detach . | . . . Swap 1 | . 1 . Drop 4 | 1 1 2 Fire 22 | 11 9 2 Melee . | . . . Ram 3 | . . 3 Kick 9 | . . 9 Crush . | . . . Escape Stasis . | . . . Rewire . | . . . Trap . | . . . Miscellaneous . | . . . Route ------- -11/Scrapyard -10/Materials -9/Materials History --------- Turn | Location | Event 2 | -11/Scrapyard | Met Revision 17 10 | -11/Scrapyard | Discovered new exit (range 15) 147 | -11/Scrapyard | Entered Materials 271 | -10/Materials | Discovered new exit (range 7) 302 | -10/Materials | Build established: Mutant 438 | -10/Materials | Entered another Materials area 438 | -9/Materials | Evolved 2 slots: Propulsion x2 749 | -9/Materials | Self-destructed Last Messages --------------- Kicked Y-45 Defender out of the way. Kicked Y-45 Defender. Aluminum Leg destroyed. Slammed into Y-45 Defender. W-16 Scout sends out distress signal. System corrupted: FCS attempts to trigger Lgt. EM Pulse Cannon. System corrupted: Lgt. EM Pulse Cannon misfires. W-16 Scout destroyed. T-07 Excavator destroyed. Acquired 14 matter. Lgt. EM Pulse Cannon destroyed. Seismic Detector destroyed. Slammed into Y-45 Defender. Slammed into G-47 Trooper. Lgt. Ion Engine destroyed. Critical hit (Burn: +37). Lgt. EM Pulse Cannon destroyed. U-05 Engineer builds a Door. R-06 Scavenger collects Signal Interpreter. Map ----- +----------------------------------------------------+ | ?????????????????????????????????????????? | | ?????????????????????????????????????????? | | ?????????????????????????????????????????? | | ?????????????????????????????????????????? | | ?????????????????????????????????????????? | | ?????????????????????????????????????????? | | ?????????????????????????????????????????? | | ?????????????????????????????????????????? | | ?????????????????????????????????????????? | | ?????????????????????????????????????????? | | ?????????????????????????????????????????? | | ?????????????????????????????????????????? | | ?????????????????????????????????????????? | | ??????????????#??????????????????????????? | | ??????????????# ?????????????????????????? | | ???????????? #r ??????????????###???????? | | ????????????? r% ??????????#### ######### | | ??????????????# ?????????# # | | ??????????????# g ????????# """ """ # | | ?????????????## g #???????# """ """ # | | ?????????????# ###+#### """ """ # | | ?????????????# # # | | ?????????????# # """ """ # | | ?????????????# ! u+ """ """ ""# | | ???????????" ; *%=Yg# """ """ ""# | | ?????????????# t =g@Y # T"# | | ?????????????# ###### # ""# | | ?????????????### #??????# # ""# | | ???????????????# #??????# # # | | ???????????????# #??????#=############## | | ???????????????# ########/#####????????? | | ???????????????# # !%[ #????????? | | ???????????????# # #????????? | | ???????????????# # #????????? | | ???????????????# + #????????? | | ???????????????# # #????????? | | ??????????????## ##############????????? | | ??????????????# # #?????????????? | | ??????????????# # #?????????????? | | ??????????????# T #?????????????? | | ??????????????# # #?????????????? | | ??????????????#| #### #?????????????? | | ??????????????### ###???####?????????????? | | ????????????????# #??????????????????????? | | ????????????????# #??????????????????????? | | ????????????????# #??????????????????????? | | ????????????????# #?########?????????????? | | ????????????????# #?# #?????????????? | | ????????????????# #?# """ #?????????????? | | ????????######### #?# """ #?????????????? | +----------------------------------------------------+ Best States ------------- Heat Dissipation 28 Energy Generation 10 Energy Capacity 250 Matter Stores 300 Matter Capacity 300 Sight Range 16 Terrain Scan Density 10 Evasion (%) 55 Item Schematics ----------------- None Robot Schematics ------------------ None Fabricated ------------ Nothing Alien Tech Used ----------------- None Achievements -------------- None Challenges ------------ None Game ------ Seed AuthchipThiefFlamer Manual? 0 Play Time 00:13:33 Cumulative 2.2 hours Start 2025.03.11 @ 21:37:19 End 2025.03.11 @ 21:48:29 Sessions 1 Manual Loads 0 Difficulty Rogue Special Mode None Game No. 6 Rogue 6 Adventurer 0 Explorer 0 Win Type - Total 0 Types 0/0/0/0/0/0/0/0/0 Lore% 1 Gallery% 4 Achievement% 5 Wizard Run 0 Options --------- Layout 1 ASCII 0 Keyboard 0 Movement Numpad Keybinds 0 Fullscreen 1 Font 24/Smallcaps Map View 50x35 Zoom Use 0% Tactical HUD 0 Map Filters NONE Filters NONE Steam 1 RUN: c4fa59b4-3197-4b13-a86d-46dc75452f57